fUSD/lending_fUSD_20260405
["ID","MTS","AMOUNT","RATE_DAILY","PERIOD"]
[419857462,1775423451899,-2962.0,0.00015726,2]
[419857463,1775423451908,-500.0,0.00015726,2]
[419857464,1775423451917,-2962.0,0.00015726,2]
[419857465,1775423451926,-500.0,0.00015726,2]
[419857466,1775423451935,-2962.0,0.00015726,2]
[419857467,1775423451944,-500.0,0.00015726,2]
[419857468,1775423451953,-2962.0,0.00015726,2]
[419857469,1775423451962,-500.0,0.00015726,2]
[419857470,1775423451971,-2962.0,0.00015726,2]
[419857471,1775423451980,-500.0,0.00015726,2]
[419857472,1775423451989,-2962.0,0.00015726,2]
[419857473,1775423451998,-2962.0,0.00015726,2]
[419857474,1775423452007,-2962.0,0.00015726,2]
[419857475,1775423452016,-2962.0,0.00015726,2]
[419857476,1775423452025,-518.811803,0.00015726,2]
[419857477,1775423452034,-2962.0,0.00015726,2]
[419857478,1775423452043,-518.811803,0.00015726,2]
[419857479,1775423452052,-2962.0,0.00015726,2]
[419857480,1775423452061,-518.811803,0.00015726,2]
[419857481,1775423452070,-2962.0,0.00015726,2]
[419857482,1775423452079,-518.811803,0.00015726,2]
[419857483,1775423452088,-2962.0,0.00015726,2]
[419857484,1775423452097,-2962.0,0.00015726,2]
[419857485,1775423452107,-2971.36335866,0.00015726,2]
[419857486,1775423452116,-235.609973,0.00015728,2]
[419857487,1775423452125,-500.0,0.0001573,2]
[419857488,1775423452133,-349.3,0.0001573,2]
[419857489,1775423452143,-215.8,0.0001573,2]
[419857490,1775423452152,-152.5,0.0001573,2]
[419857491,1775423452161,-500.0,0.0001573,2]
[419857492,1775423452170,-500.0,0.0001573,2]
[419857493,1775423452179,-500.0,0.0001573,2]
[419857494,1775423452188,-925.113909,0.00015731,2]
[419857495,1775423452197,-316.87951017,0.00015731,2]
[419857496,1775423452207,-500.0,0.00015731,2]
[419857497,1775423452216,-150.0,0.00015743,2]
[419857498,1775423452225,-150.0,0.00015745,2]
[419857499,1775423452234,-150.0,0.00015747,2]
[419857500,1775423452244,-500.0,0.0001575,2]
[419857501,1775423452253,-262.0,0.00015753,2]
[419857502,1775423452262,-5957.33,0.00015753,2]
[419857503,1775423452272,-150.0,0.00015757,2]
[419857504,1775423452281,-150.0,0.00015765,2]
[419857505,1775423452290,-150.0,0.00015765,2]
[419857506,1775423452300,-150.0,0.00015771,2]
[419857507,1775423452309,-150.0,0.00015771,2]
[419857508,1775423452319,-150.0,0.00015771,2]
[419857509,1775423452328,-500.0,0.00015773,2]
[419857510,1775423452337,-3804.09730091,0.00015778,2]
[419857511,1775423452347,-150.0,0.00015782,2]
[419857512,1775423452356,-150.0,0.00015791,2]
[419857513,1775423452366,-150.0,0.000158,2]
[419857514,1775423452376,-1816.34421589,0.00015801,2]
[419857515,1775423452385,-150.0,0.00015812,2]
[419857516,1775423452394,-150.0,0.00015812,2]
[419857517,1775423452404,-150.0,0.00015817,2]
[419857518,1775423452413,-150.0,0.00015818,2]
[419857519,1775423452422,-5800.0,0.00015823,2]
[419857520,1775423452431,-150.0,0.00015826,2]
[419857521,1775423452441,-150.0,0.00015829,2]
[419857522,1775423452450,-150.0,0.00015832,2]
[419857523,1775423452459,-5800.0,0.00015832,2]
[419857524,1775423452469,-634.93,0.00015839,2]
[419857525,1775423452478,-571.58,0.00015839,2]
[419857526,1775423452487,-206.8,0.00015839,2]
[419857527,1775423452496,-500.0,0.00015839,2]
[419857528,1775423452506,-500.0,0.00015839,2]
[419857529,1775423452515,-500.0,0.00015839,2]
[419857530,1775423452525,-500.0,0.00015839,2]
[419857531,1775423452535,-615.25,0.00015839,2]
[419857532,1775423452545,-500.0,0.00015839,2]
[419857533,1775423452554,-500.0,0.00015839,2]
[419857534,1775423452565,-166143.042,0.0001584,2]
[419857535,1775423452574,-150.0,0.0001584,2]
[419857536,1775423452583,-2000.0,0.0001584,2]
[419857537,1775423452593,-2000.0,0.0001584,2]
[419857538,1775423452602,-2000.0,0.0001584,2]
[419857539,1775423452611,-652.815241,0.0001584,2]
[419857540,1775423452620,-652.815241,0.0001584,2]
[419857541,1775423452630,-652.815241,0.0001584,2]
[419857542,1775423452639,-652.815241,0.0001584,2]
[419857543,1775423452649,-5800.0,0.00015841,2]
[419857544,1775423452658,-482.59,0.00015846,2]
[419857545,1775423452668,-224.96918426,0.00015846,2]
[419857546,1775423452677,-3292.0,0.00015847,5]
[419857547,1775423452687,-2628.0,0.00015847,5]
[419857548,1775423452696,-5800.0,0.00015849,2]
[419857549,1775423452707,-305.29187511,0.00015849,2]
[419857550,1775423452716,-500.0,0.0001585,2]
[419857551,1775423452726,-500.0,0.0001585,2]
[419857552,1775423452735,-150.0,0.00015855,2]
[419857553,1775423452745,-150.0,0.00015857,2]
[419857554,1775423452754,-5800.0,0.00015858,2]
[419857555,1775423452763,-150.0,0.00015859,2]
[419857556,1775423452774,-150.0,0.00015859,2]
[419857557,1775423452783,-150.0,0.00015861,2]
[419857558,1775423452793,-2146.25,0.00015862,2]
[419857559,1775423452802,-150.0,0.00015863,2]
[419857560,1775423452812,-11870.0,0.00015863,2]
[419857561,1775423452822,-5800.0,0.00015866,2]
[419857562,1775423452831,-539.252182,0.00015866,2]
[419857563,1775423452841,-539.252182,0.00015866,2]
[419857564,1775423452852,-539.252182,0.00015866,2]
[419857565,1775423452861,-539.252182,0.00015866,2]
[419857566,1775423452871,-978.74,0.00015871,2]
[419857567,1775423452880,-500.0,0.00015871,2]
[419857568,1775423452890,-200.0,0.00015871,2]
[419857569,1775423452899,-500.0,0.00015872,2]
[419857570,1775423452908,-200.0,0.00015872,2]
[419857571,1775423452918,-500.0,0.00015872,2]
[419857572,1775423452927,-500.0,0.00015872,2]
[419857573,1775423452937,-500.0,0.00015872,2]
[419857574,1775423452946,-200.0,0.00015872,2]
[419857575,1775423452956,-200.0,0.00015872,2]
[419857576,1775423452966,-5800.0,0.00015874,2]
[419857577,1775423452975,-548.0,0.00015875,2]
[419857578,1775423452985,-1500.0,0.00015878,2]
[419857579,1775423452995,-1500.0,0.00015878,2]
[419857580,1775423453005,-318.06583411,0.00015878,2]
[419857581,1775423453015,-1500.0,0.00015878,2]
[419857582,1775423453024,-1500.0,0.00015878,2]
[419857583,1775423453034,-544.25866012,0.00015882,2]
[419857584,1775423453043,-5800.0,0.00015883,2]
[419857585,1775423453053,-150.0,0.00015886,2]
[419857586,1775423453062,-150.0,0.00015886,2]
[419857587,1775423453072,-181.0,0.00015887,2]
[419857588,1775423453082,-500.0,0.00015889,2]
[419857589,1775423453092,-780.77,0.00015889,2]
[419857590,1775423453102,-500.0,0.0001589,2]
[419857591,1775423453111,-2000.0,0.0001589,2]
[419857592,1775423453121,-150.0,0.00015891,2]
[419857593,1775423453131,-500.0,0.00015891,2]
[419857594,1775423453141,-533.17854525,0.00015891,2]
[419857595,1775423453151,-5800.0,0.00015891,2]
[419857596,1775423453160,-5547.0,0.00015894,2]
[419857597,1775423453169,-4000.0,0.00015895,2]
[419857598,1775423453179,-150.0,0.00015896,2]
[419857599,1775423453188,-231.05255854,0.00015897,2]
[419857600,1775423453199,-500.0,0.00015898,2]
[419857601,1775423453208,-1269.86,0.00015899,2]
[419857602,1775423453218,-1143.16,0.00015899,2]
[419857603,1775423453227,-673.65,0.00015899,2]
[419857604,1775423453237,-634.93,0.00015899,2]
[419857605,1775423453246,-571.58,0.00015899,2]
[419857606,1775423453256,-500.0,0.00015899,2]
[419857607,1775423453265,-500.0,0.00015899,2]
[419857608,1775423453275,-500.0,0.00015899,2]
[419857609,1775423453285,-500.0,0.00015899,2]
[419857610,1775423453294,-615.25,0.00015899,2]
[419857611,1775423453306,-31163.63075239,0.00015899,2]
[419857612,1775423454120,-500.0,0.0001295,2]
[419857613,1775423454130,-500.0,0.0001295,2]
[419857614,1775423454140,-500.0,0.0001295,2]
[419857615,1775423454150,-500.0,0.0001295,2]
[419857616,1775423454159,-255.96096555,0.0001295,2]
[419857617,1775423454169,-500.0,0.0001295,2]
[419857618,1775423454179,-500.0,0.0001305,2]
[419857619,1775423454191,-3770.0,0.00015577,2]
[419857620,1775423454200,-17684.3174855,0.00015899,2]
[419857621,1775423454218,-1838.8604776,0.00015899,2]
[419857622,1775423454231,-2930.69492361,0.00015899,2]
[419857623,1775423454243,-31473.3152169,0.000159,2]
[419857624,1775423454254,-16026.1761999,0.000159,2]
[419857625,1775423454528,-2655.00067454,0.000159,2]
[419857626,1775423454538,-3906.2936707,0.000159,2]
[419857627,1775423454580,-936.52182809,0.000159,2]
[419857628,1775423454603,-874.04884267,0.000159,2]
[419857629,1775423454616,-83.13565854,0.000159,2]
[419857630,1775423454625,-574.79364123,0.000159,2]
[419857631,1775423454641,-5225.20635877,0.000159,2]
[419857632,1775423454651,-673.60789515,0.000159,2]
[419857636,1775423548446,150.0,0.00016,120]
[419857639,1775423741161,150.0,0.00016,120]
[419857641,1775423929633,150.0,0.00016,120]
[419857642,1775424119992,150.0,0.00016,120]
[419857643,1775424307820,150.0,0.00016,120]
[419857644,1775424439114,-500.0,0.00012199,2]
[419857645,1775424439136,-195.0,0.00012386,2]
[419857646,1775424439157,-156.39595107,0.00012472,2]
[419857647,1775424439178,-1500.0,0.00012492,2]
[419857648,1775424439199,-500.0,0.00012572,2]
[419857649,1775424439220,-2000.0,0.000126,2]
[419857650,1775424439241,-178.85889288,0.00012614,2]
[419857651,1775424439263,-1200.0,0.0001285,2]
[419857652,1775424439284,-300.0,0.0001285,2]
[419857653,1775424439305,-2500.0,0.00012851,2]
[419857654,1775424439326,-3715.58164469,0.00012851,2]
[419857655,1775424497536,150.0,0.00016,120]
[419857656,1775424606012,156.28,6.659e-05,2]
[419857657,1775424606064,156.28,7.769e-05,2]
[419857658,1775424606112,156.28,8.879e-05,2]
[419857659,1775424606146,156.28,9.989e-05,2]
[419857660,1775424606182,156.28,0.00011099,2]
[419857662,1775424632556,-584.3869834,0.00011507,2]
[419857663,1775424632568,-693.6130166,0.00011507,2]
[419857674,1775424637649,-297.28257251,0.00011507,2]
[419857675,1775424637661,-590.69919521,0.00011507,2]
[419857676,1775424637704,-1058.9566945,0.00011507,2]
[419857677,1775424637760,-238.15153778,0.00011507,2]
[419857678,1775424637770,-156.28,0.00012208,2]
[419857679,1775424637779,-165.10212758,0.00012751,2]
[419857680,1775424637790,-736.12857669,0.00012751,2]
[419857681,1775424637818,-5029.54769147,0.00012751,2]
[419857682,1775424637827,-191.43643685,0.00012841,2]
[419857683,1775424637837,-500.0,0.0001285,2]
[419857684,1775424637847,-361.77344061,0.0001285,2]
[419857685,1775424637856,-300.0,0.0001285,2]
[419857686,1775424637865,-1200.0,0.0001285,2]
[419857687,1775424637875,-150.0,0.0001285,2]
[419857688,1775424637884,-2500.0,0.00012851,2]
[419857689,1775424637894,-1227340.2398807,0.00012851,2]
[419857690,1775424637905,-800.71742749,0.00012851,2]
[419857691,1775424637917,-879.54028418,0.00012851,2]
[419857692,1775424638016,-6657.42045116,0.00012851,2]
[419857693,1775424638031,-898.06497587,0.00012851,2]
[419857694,1775424638043,-505.23051516,0.00012851,2]
[419857695,1775424638055,-2144.06072742,0.00012851,2]
[419857696,1775424638066,-2767.14593858,0.00012851,2]
[419857697,1775424638078,-3845.62211863,0.00012851,2]
[419857698,1775424638089,-291.72479288,0.00012851,2]
[419857699,1775424638104,-1980.58075856,0.00012851,2]
[419857725,1775424640712,-11254.23974103,0.00012851,2]
[419857726,1775424640726,-240635.41238834,0.00012851,2]
[419857727,1775424640735,-5700.97432188,0.00012851,2]
[419857728,1775424640745,-150.0,0.000129,2]
[419857729,1775424640754,-151.0,0.00012943,2]
[419857730,1775424640763,-151.0,0.00012943,2]
[419857731,1775424640773,-151.0,0.00012943,2]
[419857732,1775424640787,-151.0,0.00012943,2]
[419857733,1775424640798,-151.0,0.00012943,2]
[419857734,1775424640808,-151.0,0.00012943,2]
[419857735,1775424640817,-151.0,0.00012943,2]
[419857736,1775424640826,-173.04441609,0.00012943,2]
[419857737,1775424640835,-235.609973,0.00012948,2]
[419857738,1775424640844,-3428.853,0.0001295,2]
[419857739,1775424640853,-181.001,0.0001295,2]
[419857741,1775424640862,-1000.0,0.00012951,2]
[419857743,1775424640872,-250.0,0.00013,2]
[419857744,1775424640882,-5930.77839574,0.00013101,2]
[419857745,1775424640891,-507.0,0.00013111,2]
[419857746,1775424640900,-5700.97432181,0.0001319,2]
[419857747,1775424640909,-156.28,0.00013318,2]
[419857748,1775424640918,-16703.4,0.0001332,2]
[419857749,1775424640930,-474.61,0.00013405,2]
[419857750,1775424640939,-195.0,0.00013419,2]
[419857751,1775424640949,-3240.0,0.00013425,2]
[419857752,1775424640958,-1852.42,0.00013425,2]
[419857753,1775424640967,-5930.77839574,0.00013451,2]
[419857754,1775424640976,-1600.0,0.0001352,2]
[419857755,1775424640985,-5700.97432181,0.00013529,2]
[419857756,1775424640995,-500.0,0.00013698,2]
[419857757,1775424641005,-500.0,0.00013698,2]
[419857758,1775424641015,-500.0,0.00013698,2]
[419857759,1775424641024,-500.0,0.00013698,2]
[419857760,1775424641034,-500.0,0.00013698,2]
[419857761,1775424641044,-500.0,0.00013698,2]
[419857762,1775424641053,-361.74,0.00013698,2]
[419857763,1775424641062,-500.0,0.00013698,2]
[419857764,1775424641071,-500.0,0.00013698,2]
[419857765,1775424641080,-500.0,0.00013698,2]
[419857766,1775424641089,-500.0,0.00013698,2]
[419857767,1775424641098,-500.0,0.00013698,2]
[419857768,1775424641108,-500.0,0.00013698,2]
[419857769,1775424641117,-500.0,0.00013698,2]
[419857771,1775424641126,-500.0,0.00013698,2]
[419857773,1775424641135,-500.0,0.00013698,2]
[419857775,1775424641144,-500.0,0.00013698,2]
[419857777,1775424641153,-500.0,0.00013698,2]
[419857779,1775424641162,-500.0,0.00013698,2]
[419857781,1775424641171,-500.0,0.00013698,2]
[419857783,1775424641180,-500.0,0.00013698,2]
[419857784,1775424641189,-500.0,0.00013698,2]
[419857785,1775424641198,-500.0,0.00013698,2]
[419857786,1775424641208,-500.0,0.00013698,2]
[419857787,1775424641217,-482.59,0.00013698,2]
[419857788,1775424641227,-502.12,0.00013698,2]
[419857789,1775424641236,-618.56,0.00013698,2]
[419857790,1775424641245,-500.0,0.00013698,2]
[419857791,1775424641254,-500.0,0.00013698,2]
[419857792,1775424641263,-500.0,0.00013698,2]
[419857793,1775424641272,-500.0,0.00013698,2]
[419857794,1775424641281,-173.65,0.00013698,2]
[419857795,1775424641290,-500.0,0.00013698,2]
[419857796,1775424641299,-500.0,0.00013698,2]
[419857797,1775424641308,-500.0,0.00013698,2]
[419857798,1775424641317,-500.0,0.00013698,2]
[419857799,1775424641326,-206.8,0.00013698,2]
[419857800,1775424641335,-500.0,0.00013698,2]
[419857801,1775424641344,-500.0,0.00013698,2]
[419857802,1775424641353,-500.0,0.00013698,2]
[419857803,1775424641362,-500.0,0.00013698,2]
[419857804,1775424641371,-500.0,0.00013698,2]
[419857805,1775424641380,-500.0,0.00013698,2]
[419857806,1775424641391,-500.0,0.00013698,2]
[419857807,1775424641400,-280.77,0.00013698,2]
[419857808,1775424641409,-500.0,0.00013698,2]
[419857809,1775424641418,-500.0,0.00013698,2]
[419857810,1775424641427,-500.0,0.00013698,2]
[419857811,1775424641436,-500.0,0.00013698,2]
[419857812,1775424641446,-584.36,0.00013698,2]
[419857813,1775424641455,-500.0,0.00013698,2]
[419857814,1775424641464,-500.0,0.00013698,2]
[419857815,1775424641473,-150.0,0.00013699,2]
[419857816,1775424641482,-150.0,0.00013699,2]
[419857817,1775424641491,-150.0,0.00013699,2]
[419857818,1775424641499,-150.0,0.00013699,2]
[419857819,1775424641508,-150.0,0.00013699,2]
[419857820,1775424641518,-150.0,0.00013699,2]
[419857821,1775424641527,-150.0,0.00013699,2]
[419857822,1775424641536,-717.06,0.00013699,2]
[419857823,1775424641546,-2224.09,0.00013699,2]
[419857824,1775424641555,-156.8,0.00013699,2]
[419857825,1775424641564,-162.49,0.000137,2]
[419857826,1775424641573,-200.0,0.00013746,2]
[419857827,1775424641582,-5930.77839574,0.00013801,2]
[419857828,1775424641591,-5700.97432181,0.00013867,2]
[419857829,1775424641600,-158.33,0.00013868,2]
[419857830,1775424641609,-158.33,0.0001395,2]
[419857831,1775424641619,-255.0,0.00013955,2]
[419857832,1775424641628,-584.36,0.00013972,2]
[419857833,1775424641637,-150.0,0.00013973,2]
[419857834,1775424641646,-150.0,0.00013973,2]
[419857835,1775424641655,-150.0,0.00013973,2]
[419857836,1775424641664,-150.0,0.00013973,2]
[419857837,1775424641674,-150.0,0.00013973,2]
[419857838,1775424641683,-150.0,0.00013973,2]
[419857839,1775424641693,-150.0,0.00013973,2]
[419857840,1775424641703,-389.02,0.00013973,2]
[419857841,1775424641713,-500.0,0.00014,2]
[419857842,1775424641722,-11794.59590422,0.00014006,2]
[419857843,1775424641731,-420.0,0.00014094,2]
[419857844,1775424641740,-2500.0,0.00014135,2]
[419857845,1775424641749,-2500.0,0.00014135,2]
[419857846,1775424641758,-1680.0,0.00014135,2]
[419857847,1775424641767,-300.0,0.00014135,2]
[419857848,1775424641776,-300.0,0.00014135,2]
[419857849,1775424641786,-300.0,0.00014135,2]
[419857850,1775424641795,-300.0,0.00014135,2]
[419857851,1775424641804,-425.2863973,0.00014135,2]
[419857852,1775424641813,-500.0,0.00014135,2]
[419857853,1775424641822,-500.0,0.00014135,2]
[419857854,1775424641831,-500.0,0.00014135,2]
[419857855,1775424641841,-500.0,0.00014135,2]
[419857856,1775424641850,-595.82296535,0.00014135,2]
[419857857,1775424641859,-2500.0,0.00014136,2]
[419857858,1775424641868,-2500.0,0.00014136,2]
[419857859,1775424641877,-2500.0,0.00014136,2]
[419857860,1775424641886,-5930.77839574,0.00014151,2]
[419857861,1775424641895,-507.0,0.00014156,2]
[419857862,1775424641905,-2000.0,0.00014175,2]
[419857863,1775424641915,-168.8146,0.000142,2]
[419857864,1775424641924,-5700.97432181,0.00014206,2]
[419857865,1775424641933,-378.28,0.00014232,2]
[419857866,1775424641942,-584.36,0.00014246,2]
[419857867,1775424641951,-150.0,0.00014247,2]
[419857868,1775424641959,-150.0,0.00014247,2]
[419857869,1775424641968,-150.0,0.00014247,2]
[419857870,1775424641977,-150.0,0.00014247,2]
[419857871,1775424641987,-150.0,0.00014247,2]
[419857872,1775424641996,-150.0,0.00014247,2]
[419857873,1775424642005,-150.14541725,0.000144,2]
[419857874,1775424642014,-150.0,0.000144,2]
[419857875,1775424642023,-150.0,0.000144,2]
[419857876,1775424642032,-150.0,0.000144,2]
[419857877,1775424642041,-150.17540857,0.000144,2]
[419857878,1775424642050,-150.0,0.000144,2]
[419857879,1775424642059,-150.0,0.000144,2]
[419857880,1775424642068,-151.01430456,0.000144,2]
[419857881,1775424642077,-150.0,0.000144,2]
[419857882,1775424642087,-287.38140471,0.000144,2]
[419857883,1775424642095,-150.0,0.000144,2]
[419857884,1775424642104,-150.0,0.000144,2]
[419857885,1775424642114,-150.0,0.000144,2]
[419857886,1775424642123,-160.0,0.00014465,2]
[419857887,1775424642132,-150.0,0.00014467,2]
[419857888,1775424642141,-150.0,0.00014484,2]
[419857889,1775424642151,-150.0,0.00014484,2]
[419857890,1775424642160,-325.0,0.00014491,4]
[419857891,1775424642169,-5930.77839574,0.000145,2]
[419857892,1775424642178,-201.8500864,0.00014503,4]
[419857893,1775424642187,-7124.75,0.00014504,2]
[419857894,1775424642197,-150.99,0.00014504,2]
[419857895,1775424642206,-150.0,0.00014514,2]
[419857896,1775424642215,-150.0,0.00014514,2]
[419857897,1775424642225,-584.36,0.0001452,2]
[419857898,1775424642234,-150.0,0.00014533,2]
[419857899,1775424642243,-5700.97432181,0.00014545,2]
[419857900,1775424642252,-150.0,0.00014568,2]
[419857901,1775424642261,-150.0,0.00014568,2]
[419857902,1775424642270,-150.0,0.000146,2]
[419857903,1775424642279,-150.0,0.000146,2]
[419857904,1775424642288,-150.0,0.00014629,2]
[419857905,1775424642297,-150.0,0.00014629,2]
[419857906,1775424642306,-150.0,0.00014653,2]
[419857907,1775424642315,-150.0,0.00014653,2]
[419857908,1775424642325,-150.0,0.00014667,2]
[419857909,1775424642334,-150.0,0.00014667,2]
[419857910,1775424642343,-150.0,0.00014733,2]
[419857911,1775424642352,-150.0,0.00014737,2]
[419857912,1775424642361,-150.0,0.00014737,2]
[419857913,1775424642371,-150.0,0.00014743,2]
[419857914,1775424642380,-150.0,0.00014743,2]
[419857916,1775424642389,-160.0,0.00014756,7]
[419857917,1775424642398,-788.425156,0.00014756,7]
[419857918,1775424642407,-1416.850312,0.00014756,7]
[419857919,1775424642416,-160.0,0.00014756,2]
[419857920,1775424642425,-732.977436,0.00014756,2]
[419857921,1775424642434,-1305.954873,0.00014756,2]
[419857922,1775424642443,-584.38971614,0.00014794,2]
[419857923,1775424642451,-150.0,0.000148,2]
[419857924,1775424642461,-150.0,0.000148,2]
[419857925,1775424642470,-150.0,0.000148,2]
[419857926,1775424642479,-150.0,0.00014821,2]
[419857927,1775424642488,-150.0,0.00014821,2]
[419857928,1775424642497,-150.0,0.00014857,2]
[419857930,1775424642506,-150.0,0.00014857,2]
[419857931,1775424642515,-150.0,0.00014867,2]
[419857938,1775424642879,-5700.97432181,0.00014884,2]
[419857939,1775424642895,-500.0,0.000149,2]
[419857940,1775424642904,-229.3073468,0.000149,2]
[419857941,1775424642914,-150.0,0.00014905,2]
[419857942,1775424642923,-150.0,0.00014905,2]
[419857943,1775424642932,-150.0,0.00014933,2]
[419857944,1775424642941,-150.0,0.00014933,2]
[419857945,1775424642950,-160.0,0.00014942,7]
[419857946,1775424642959,-947.632795,0.00014942,7]
[419857947,1775424642968,-1735.26559,0.00014942,7]
[419857948,1775424642977,-160.0,0.00014942,2]
[419857949,1775424642986,-852.586062,0.00014942,2]
[419857950,1775424642995,-1545.172125,0.00014942,2]
[419857951,1775424643004,-150.0,0.0001495,5]
[419857952,1775424643014,-500.0,0.00014955,2]
[419857953,1775424643023,-500.0,0.00014955,2]
[419857954,1775424643032,-500.0,0.00014955,2]
[419857955,1775424643042,-500.0,0.00014955,2]
[419857956,1775424643051,-500.0,0.00014955,2]
[419857957,1775424643061,-500.0,0.00014955,2]
[419857958,1775424643070,-500.0,0.00014955,2]
[419857959,1775424643080,-150.0,0.00014971,2]
[419857960,1775424643090,-150.0,0.00014971,2]
[419857961,1775424643099,-150.0,0.00014989,2]
[419857962,1775424643109,-150.0,0.00014989,2]
[419857963,1775424643119,-300.0,0.00015,2]
[419857964,1775424643129,-150.0,0.00015,2]
[419857965,1775424643138,-150.0,0.00015,2]
[419857966,1775424643152,-381.20749087,0.0001502,2]
[419857967,1775424643161,-171.96403511,0.0001502,2]
[419857968,1775424643171,-500.0,0.0001502,2]
[419857969,1775424643181,-500.0,0.0001502,2]
[419857970,1775424643190,-378.28,0.00015023,2]
[419857972,1775424643200,-500.0,0.00015025,2]
[419857973,1775424643209,-500.0,0.00015025,2]
[419857974,1775424643219,-193.24301277,0.00015033,2]
[419857975,1775424643229,-500.0,0.00015056,2]
[419857976,1775424643239,-500.0,0.00015056,2]
[419857977,1775424643249,-500.0,0.00015056,2]
[419857978,1775424643258,-293.75361104,0.00015056,2]
[419857979,1775424643268,-150.6277852,0.00015056,2]
[419857980,1775424643277,-500.0,0.00015056,2]
[419857981,1775424643287,-190.76200166,0.00015056,2]
[419857982,1775424643296,-557.26294492,0.00015056,2]
[419857984,1775424643306,-500.0,0.00015056,2]
[419857986,1775424643315,-578.20924308,0.00015057,2]
[419857988,1775424643324,-695.39793187,0.00015057,2]
[419857990,1775424643334,-500.0,0.00015057,2]
[419857992,1775424643345,-200.0,0.00015057,2]
[419857994,1775424643354,-500.0,0.00015057,2]
[419857996,1775424643364,-201.93286099,0.00015057,2]
[419857998,1775424643374,-1377.42282659,0.00015057,2]
[419858000,1775424643384,-500.0,0.00015057,2]
[419858002,1775424643394,-500.0,0.00015057,2]
[419858004,1775424643403,-500.0,0.00015057,2]
[419858005,1775424643412,-500.0,0.00015057,2]
[419858007,1775424643422,-500.0,0.00015057,2]
[419858008,1775424643432,-500.0,0.00015057,2]
[419858009,1775424643441,-500.0,0.00015057,2]
[419858010,1775424643451,-500.0,0.00015057,2]
[419858011,1775424643460,-500.0,0.00015057,2]
[419858012,1775424643470,-500.0,0.00015057,2]
[419858013,1775424643479,-500.0,0.00015057,2]
[419858014,1775424643488,-1000.0,0.00015057,2]
[419858016,1775424643498,-1000.0,0.00015057,2]
[419858017,1775424643507,-1000.0,0.00015057,2]
[419858018,1775424643516,-1000.0,0.00015057,2]
[419858019,1775424643526,-1000.0,0.00015057,2]
[419858020,1775424643535,-1000.0,0.00015057,2]
[419858021,1775424643544,-1000.0,0.00015057,2]
[419858022,1775424643553,-1000.0,0.00015057,2]
[419858023,1775424643563,-1000.0,0.00015057,2]
[419858024,1775424643573,-1000.0,0.00015057,2]
[419858025,1775424643582,-1000.0,0.00015057,2]
[419858026,1775424643593,-339.62894545,0.00015057,2]
[419858027,1775424643602,-1000.0,0.00015057,2]
[419858028,1775424643612,-3000.0,0.00015057,2]
[419858029,1775424643621,-3000.0,0.00015057,2]
[419858030,1775424643631,-3000.0,0.00015057,2]
[419858031,1775424643640,-3000.0,0.00015057,2]
[419858032,1775424643650,-1240.61840911,0.00015057,2]
[419858033,1775424643660,-151.0,0.00015057,2]
[419858034,1775424643670,-174.61919141,0.00015057,2]